Cogmind - Beta 15 @@@ ROGUE MODE // 2025.08.04 @ 13:26:57 Player: winnking222 Result: Destroyed by as-22733 with Assembled Rifle Performance ------------- Evolutions (0) 0 Regions Visited (2) 400 Robots Destroyed (23) 115 Value Destroyed (521) 521 Prototype IDs (0) 0 Alien Tech Used (0) 0 Bonus (32) 32 TOTAL SCORE: 1068 Bonus ------- Follower Combat Kills 35 Friendly Fire -3 Cogmind --------- Core Integrity 0/250 Matter 300/300 Energy 100/100 System Corruption 1% Temperature Cool (0) Movement Treading (240) Ox1 Location -10/Mines Parts ------- > --- POWER (1) -------- (None) > --- PROPULSION (2) --- Light Treads > --- UTILITY (2) ------ Improved Heat Sink (fused) Large Storage Unit > --- WEAPON (2) ------- Spread Laser > --- INVENTORY (15) --- Wheel Seismic Detector Seismic Detector Light Armor Plating Thief Drone Bay Light EM Pulse Cannon Assault Rifle Peak State ------------ > --- POWER ------------ Ion Engine > --- PROPULSION ------- Light Treads Light Treads > --- UTILITY ---------- Improved Heat Sink Small Storage Unit > --- WEAPON ----------- Spread Laser Spread Laser > --- INVENTORY -------- Ion Engine Light Treads Wheel Seismic Detector Seismic Detector Light EM Pulse Cannon Light EM Pulse Cannon Light Assault Rifle [Rating: 12] Favorites ----------- Power Ion Engine Engine Ion Engine Propulsion Light Treads Treads Light Treads Leg Aluminum Leg Utility Improved Heat Sink Device Improved Heat Sink Storage Large Storage Unit Weapon Spread Laser Energy Gun Spread Laser Energy Cannon Light EM Pulse Cannon Ballistic Gun Light Assault Rifle Build | -11 -10 -10 ------- Run | Yrd Mat Min Slots Evolved . | . . . Power . | . . . Propulsion . | . . . Utility . | . . . Weapon . | . . . Parts Attached 18 | 7 8 3 Power 2 | 1 . 1 Engine 2 | 1 . 1 Core . | . . . Reactor . | . . . Propulsion 5 | 2 2 1 Treads 3 | . 2 1 Leg 2 | 2 . . Wheel . | . . . Hover . | . . . Flight . | . . . Utility 5 | 2 3 . Device 3 | 1 2 . Storage 2 | 1 1 . Processor . | . . . Hackware . | . . . Protection . | . . . Artifact . | . . . Weapon 6 | 2 3 1 Energy Gun 2 | . 2 . Energy Cannon 1 | . . 1 Ballistic Gun 3 | 2 1 . Ballistic Cannon . | . . . Launcher . | . . . Special Weapon . | . . . Impact Weapon . | . . . Slashing Weapon . | . . . Piercing Weapon . | . . . Special Melee Weapon . | . . . Unidentified Prototypes . | . . . Parts Lost 5 | . . 5 Power 1 | . . 1 Propulsion 2 | . . 2 Utility . | . . . Weapon 2 | . . 2 Highest Loss Streak 4 | . . 4 To Critical Strikes . | . . . Average Backups 7 | 4 7 8 Power . | . 1 . Propulsion 2 | 2 2 1 Utility 2 | . 1 3 Weapon 2 | . 2 2 Tool/Special . | . . . Unused Backups 8 | . 2 6 Power . | . . . Propulsion 1 | . . 1 Utility 3 | . . 3 Weapon 4 | . 2 2 Tool/Special . | . . . Average Slot Usage (%) 97 | . 100 89 Engine 13 | . 14 12 Treads 24 | . 25 19 Leg 1 | . 2 . Device 14 | . 14 14 Storage 14 | . 14 14 Energy Gun 21 | . 22 19 Energy Cannon 2 | . . 8 Ballistic Gun 4 | . 5 . Peak Build Rating 12 | 7 12 12 Average Rating 10 | 5 10 11 On Entrance 6 | . 7 12 Naked Turns . | . . . Heaviest Build 33 | 13 32 33 Greatest Support 40 | 20 40 40 Greatest Overweight (x) 3 | 3 . 1 Average Overweight (x) . | . . . Largest Inventory Capacity 15 | 8 15 15 Average Capacity 12 | 7 12 15 Most Carried 10 | 7 9 10 Average Carried 7 | 4 7 8 Final Capacity 15 | 8 15 15 Final Carried 9 | 6 9 7 Class Distribution -------------------- 100% | Mutant Dominant Class ---------------- Mutant | -10/Materials Mutant | -10/Mines Resources | -11 -10 -10 ----------- Run | Yrd Mat Min Matter Collected 453 | 312 108 33 Remotely . | . . . Salvage Created 474 | 126 290 58 Parts 47 | 11 33 3 Haulers Intercepted . | . . . Recyclers Shooed 1 | . . 1 Parts Field Recycled . | . . . Retrieved Matter . | . . . Parts Self-Destructed . | . . . Prevented . | . . . Kills | -11 -10 -10 ------- Run | Yrd Mat Min Combat Hostiles Destroyed 18 | . 12 6 Guns 14 | . 12 2 Cannons 4 | . . 4 Classes Destroyed 8 | 2 4 2 Tunneler 3 | 3 . . Recycler 1 | 1 . . Operator 1 | . 1 . Watcher 3 | . 3 . Swarmer 6 | . 6 . Grunt 7 | . 6 1 Demolisher 2 | . . 2 Assembled 3 | . . 3 Best Kill Streak 5 | 2 5 3 Combat Bots Only 5 | . 5 3 Max Kills in Single Turn 2 | 1 2 1 Gunslinging 1 | . 1 . Exploded . | . . . Melee . | . . . Uniques/NPCs Destroyed . | . . . Combat | -11 -10 -10 -------- Run | Yrd Mat Min Hostile Shots Fired 102 | . 55 47 Missed 28 | . 19 9 Hits 74 | . 36 38 Projectile 74 | . 36 38 AOE 8 | . . 8 Critical Strikes 1 | . . 1 Part Disruptions 1 | . . 1 Damage Taken 1047 | . 355 692 Core 258 | . 38 220 Absorbed by Shields . | . . . Core Remaining (%) 100 | 100 . . Volleys Fired 76 | 21 41 14 Largest 2 | 2 2 2 Hottest 130 | 40 130 130 Shots Fired 151 | 42 81 28 Gun 142 | 42 81 19 Cannon 9 | . . 9 Launcher . | . . . Special . | . . . Kinetic 70 | 42 28 . Thermal 72 | . 53 19 Explosive . | . . . Electromagnetic 9 | . . 9 Robot Hit Streak 10 | 6 10 7 Robot Miss Streak 7 | 5 7 6 Penetration Max . | . . . Secondary Targets 4 | . 3 1 Max Gunslinging Chain 1 | . 1 1 Shots Hit Robots 113 | 23 64 26 Core Hits 102 | 8 63 31 Critical Kills . | . . . Critical Parts Destroyed . | . . . Critical Strikes . | . . . Melee Attacks . | . . . Impact . | . . . Slashing . | . . . Piercing . | . . . Sneak Attacks . | . . . Combat Hostiles . | . . . Follow-up Attacks . | . . . Damage Inflicted 1221 | 207 636 378 Guns 1066 | 207 636 223 Cannons 153 | . . 153 Explosions . | . . . Melee . | . . . Ramming 2 | . . 2 Kinetic 314 | 207 107 . Thermal 752 | . 529 223 Explosive . | . . . Electromagnetic 153 | . . 153 Impact . | . . . Slashing . | . . . Piercing . | . . . Highest Corruption 1 | . 1 1 Average Corruption 1 | . 1 1 Corruption Purged . | . . . Corruption Blocked . | . . . Effects 12 | . 8 4 Message Errors 2 | . 1 1 Matter Fused 1 | . . 1 Heat Flow Errors 1 | . 1 . Energy Discharges 1 | . 1 . Parts Rejected 1 | . . 1 Parts Fused 2 | . 2 . Data Loss (minor) 3 | . 2 1 Weapon Failures 1 | . 1 . Overload Shots . | . . . Overflow Damage . | . . . Projectiles . | . . . Explosions . | . . . Melee . | . . . Knockbacks . | . . . Impact . | . . . Kinetic . | . . . Secondary . | . . . Self-Inflicted Damage . | . . . Shots . | . . . Rammed 1 | . . 1 Targets Rammed 1 | . . 1 Kicked . | . . . Crushed . | . . . Highest Temperature 254 | . 254 141 Average Temperature 74 | . 81 59 Received Heat Transfer 261 | . 114 147 Siege Activations . | . . . Martial Activations . | . . . Shielding Activations . | . . . Robots Disrupted . | . . . Combat Hostiles . | . . . Robots Corrupted . | . . . Combat Hostiles . | . . . Parts Fried . | . . . Impact Corruptions . | . . . Robots Melted . | . . . Combat Hostiles . | . . . Parts Melted . | . . . Heat Transferred 955 | . 665 290 Parts Sabotaged . | . . . Parts Stolen . | . . . Parts Stripped . | . . . Power Chain Reactions . | . . . Alert | -11 -10 -10 ------- Run | Yrd Mat Min Maximum Alert Level . | . . . Low Security (%) 100 | 100 100 100 Level 1 . | . . . Level 2 . | . . . Level 3 . | . . . Level 4 . | . . . Level 5 . | . . . High Security . | . . . Max Security . | . . . Peak Influence 122 | 10 122 52 Initial . | . . . Average 21 | 1 29 7 Influence Increases 449 | 20 327 102 Destroy 0b10 Robot/C 320 | . 240 80 Destroy 0b10 Robot/NC 40 | 20 20 . Destroy Leader 76 | . 56 20 Allied During Kill 2 | . . 2 Successful Hack 11 | . 11 . Influence Decreases 449 | 20 327 102 Time Decay 417 | 20 327 70 Lost Part 12 | . . 12 Lost Ally 20 | . . 20 Squads Dispatched 2 | . 2 . Investigation 1 | . 1 . Extermination . | . . . Reinforcement 1 | . 1 . Assault . | . . . Garrison . | . . . Intercept . | . . . Searches Triggered . | . . . Construction Impeded . | . . . Haulers Reinforced . | . . . Active Scanning Responses . | . . . Cargo Convoy Interrupts . | . . . Stealth | -11 -10 -10 --------- Run | Yrd Mat Min Distress Signals 1 | . 1 . Communications Jammed . | . . . Distress Signals . | . . . Times Spotted 38 | . 24 14 Peak Tracking Total 6 | . 6 4 Tactical Retreats . | . . . Traps | -11 -10 -10 ------- Run | Yrd Mat Min Traps Triggered 2 | . 2 . Indirectly . | . . . Trap Hack Attempts . | . . . Triggered . | . . . Disarmed . | . . . Reprogrammed . | . . . Reused . | . . . Traps Extracted . | . . . Installed . | . . . Triggered . | . . . Machines | -11 -10 -10 ---------- Run | Yrd Mat Min Machines Disabled . | . . . Max in Single Turn . | . . . Machines Repaired . | . . . Machines Dismantled . | . . . Machines Sabotaged . | . . . Overloaded Fab Kills . | . . . Hacking | -11 -10 -10 --------- Run | Yrd Mat Min Machines Accessed 8 | . 7 1 Terminals 7 | . 7 . Fabricators . | . . . Repair Stations . | . . . Recycling Units . | . . . Scanalyzers . | . . . Garrison Access . | . . . Total Hacks 19 | . 18 1 Successful 11 | . 10 1 Failed 8 | . 8 . Catastrophic . | . . . Database Lockouts . | . . . Manual 18 | . 18 . Terminals 18 | . 18 . Fabricators . | . . . Repair Stations . | . . . Recycling Units . | . . . Scanalyzers . | . . . Garrison Access . | . . . Terminal Hacks 1 | . . 1 Open Door 1 | . . 1 Fabricator Hacks . | . . . Repair Station Hacks . | . . . Recycling Unit Hacks . | . . . Scanalyzer . | . . . Garrison Access Hacks . | . . . Unauthorized Hacks 10 | . 10 . Terminals 10 | . 10 . Botnet 4 | . 4 . Operators 1 | . 1 . Skim 5 | . 5 . Fabricators . | . . . Repair Stations . | . . . Recycling Units . | . . . Scanalyzers . | . . . Garrison Access . | . . . Data Cores Recovered . | . . . Used . | . . . Hacking Detections 5 | . 5 . Full Trace Events 2 | . 2 . Feedback Events . | . . . Feedback Blocked . | . . . Robot Schematics Acquired . | . . . Robots Built . | . . . Authchips . | . . . Time . | . . . Total Robot Build Rating . | . . . Part Schematics Acquired . | . . . Parts Built . | . . . Authchips . | . . . Time . | . . . Total Part Build Rating . | . . . Parts Repaired . | . . . Time . | . . . Parts Recycled . | . . . Recycled Matter . | . . . Retrieved Matter . | . . . Retrieved Components . | . . . Parts Scanalyzed . | . . . Part Schematics Acquired . | . . . Parts Damaged . | . . . Bothacking | -11 -10 -10 ------------ Run | Yrd Mat Min Used RIF Installer . | . . . Robots Hacked . | . . . Non-combat . | . . . Combat . | . . . Robot Hacks Applied . | . . . Relay Couplers Released . | . . . Fabnet Peak Effective % . | . . . Robots Rewired . | . . . Allies Hacked . | . . . Hacks Repelled . | . . . Allies | -11 -10 -10 -------- Run | Yrd Mat Min Total Allies 2 | . . 2 Largest Group 2 | . . 2 Highest-Rated Group 49 | . . 49 Highest-Rated Ally 31 | . . 31 Total Orders . | . . . Ally Attacks 9 | . . 9 Total Damage 86 | . . 86 Kills 2 | . . 2 Allies Corrupted 1 | . . 1 Allies Melted . | . . . Intel | -11 -10 -10 ------- Run | Yrd Mat Min Active Infowar (turns) 486 | 50 436 . Seismic 486 | 50 436 . Robot Analysis Total . | . . . Derelict Logs Recovered 1 | . . 1 Drone Launches . | . . . Drone Recoveries . | . . . Exploration | -11 -10 -10 ------------- Run | Yrd Mat Min Turns Passed 1810 | 181 1229 400 Spaces Moved 918 | 94 651 173 Core 29 | 29 . . Treads 758 | . 585 173 Legs 131 | 65 66 . Wheels . | . . . Hover . | . . . Flight . | . . . Fastest Speed 50 | 50 120 160 Average Speed 160 | 114 155 200 Slowest Speed 240 | 200 160 240 Overloaded Moves . | . . . Propulsion Burnouts . | . . . Robots Hopped . | . . . Potential Cave-ins . | . . . Cave-ins Triggered . | . . . Exploration Rate (%) 46 | 5 97 36 Regions Visited 2 Branch Regions 1 Pre-discovered Areas . | . . . Known Exits Taken . | . . . Unknown Exits Taken 2 | 1 1 . Scrap Searched 2 | . . 2 Spaces Dug . | . . . Terrain Destroyed . | . . . Melee . | . . . Projectile . | . . . AOE . | . . . Terrain Rammed . | . . . Walls Destroyed . | . . . Machines Disabled . | . . . Actions | -11 -10 -10 --------- Run | Yrd Mat Min Total 1121 | 133 790 198 Wait 78 | . 74 4 Move 916 | 93 650 173 Hop . | . . . Pick Up 23 | 12 9 2 Fast Attach 1 | 1 . . Attach 9 | 6 . 3 Detach . | . . . Swap 8 | . 8 . Drop 9 | . 8 1 Fire 76 | 21 41 14 Melee . | . . . Ram . | . . . Kick . | . . . Crush 1 | . . 1 Escape Stasis . | . . . Rewire . | . . . Trap . | . . . Miscellaneous . | . . . Route ------- -11/Scrapyard -10/Materials (discovered 5 exits: [*Mat x3] / *Min x2) -10/Mines (discovered 1 exit: [*Mat]) History --------- Turn | Location | Event 7 | -11/Scrapyard | Discovered new exit (range 14) 182 | -11/Scrapyard | Entered Materials 306 | -10/Materials | Build established: Mutant 342 | -10/Materials | Discovered new exit (range 15) 592 | -10/Materials | Discovered new exit (range 9) 611 | -10/Materials | Discovered new exit (range 3) 690 | -10/Materials | Discovered new exit (range 16) 782 | -10/Materials | Derelicts attacked the area 870 | -10/Materials | Discovered new exit (range 6) 1411 | -10/Materials | Entered Mines 1417 | -10/Mines | Found the Drone Emporium 1424 | -10/Mines | Found Prototype Device 1481 | -10/Mines | Assembled infested the area 1527 | -10/Mines | Learned Materials emergency access door positions 1573 | -10/Mines | Core integrity fell below 50% 1603 | -10/Mines | Lost 4 parts (1p2n1w) 1622 | -10/Mines | Discovered new exit (range 15) 1799 | -10/Mines | Core integrity fell below 20% 1811 | -10/Mines | Destroyed by as-22733 with Assembled Rifle Last Messages --------------- 01637_ K-01 Serf collects debris. 01638_ as-14524 sneak attacks. 01638_ K-01 Serf system corrupted by crushing effect. 01638_ K-01 Serf knocked back. 01639_ K-01 Serf system terminally corrupted. 01642_ as-65232 destroyed. 01648_ as-14524 destroyed. 01656_ K-01 Serf collects debris. 01660_ as-11678 destroyed. 01663_ K-01 Serf collects debris. 01681_ R-06 Scavenger collects Wheel. 01684_ K-01 Serf collects debris. 01685_ R-06 Scavenger collects Terrain Scan Processor. 01686_ K-01 Serf collects debris. 01687_ Slammed into R-06 Scavenger. 01689_ K-01 Serf collects debris. 01789_ System corrupted: Ion Engine rejected. 01800_ K-01 Serf collects debris. 01807_ Lgt. EM Pulse Cannon destroyed. 01810_ K-01 Serf collects debris. Map ----- +----------------------------------------------------+ | % #??????????????????????????? | | ###########?????????????????????????????????? | | # #????????????????????????????????????????????? | | # #????????????????????????????????????????????? | | ##???????????????????????????????????????????? | | #???????????????????????????????????????????? | | ##??????????????????????????????????????????? | | ##?????????????????????????????????????????? | | ##????????????????????????????????????????? | | #????????????????????????????????????????? | | ### #?????????????????????#??????????????? | | #???????????????????? #???????#??????? | | # ####??????????????????## #??????? ??????? | | ####????????????????????? ???????? ""????? | | ## #????#????????????????=%#???????? ""????? | | #####???? ???????????????? =###?????? ""????? | | #???????? ??????????????## % ??????? ????? | | #???????#!#????????????## aa#???????? ????? | | # #???????#=#????????????#=!%=###?????? ????? | | # #???????#%#?????####??##%=!%! ???????# #????? | | # #???????#=#????## ####*! #?????????# #????? | | # #???????# #????# ## #?????????# #????? | | # #???????#%#???## !!%|a #?????????# #????? | | # #???????# #?### *%! #?????????# #????? | | # %######### ### = ##????????# #????? | | %% % %t %<% k @ ##???????# #????? | | ########### #### g ######### #????? | | #?????????## ## ##??## * #????? | | #??????????#########????# #########????? | | #??????????????????????## ##????????????? | | ## ##???????????????????????#####?????????????? | | ?####??????????????????????????????????????????? | | ???????????????????????????????????????????????? | | ???????????????????????????????????????????????? | | | | | | | | | | | | | | | | | | | | | | | | | | | | | | | | | +----------------------------------------------------+ Best States ------------- Heat Dissipation 39 Energy Generation 10 Energy Capacity 250 Matter Stores 300 Matter Capacity 300 Sight Range 16 Terrain Scan Density 10 Evasion (%) 55 Recoil Reduction 2 Item Schematics ----------------- None Robot Schematics ------------------ None Fabricated ------------ Nothing Repaired ---------- Nothing Alien Tech Used ----------------- None Achievements -------------- None Challenges ------------ None Game ------ Seed CombatBlastConstruct Manual? 0 Play Time 00:13:15 Cumulative 117.3 hours Start 2025.08.04 @ 13:16:14 End 2025.08.04 @ 13:26:57 Sessions 1 Manual Loads 0 Difficulty Rogue Special Mode None Game No. 180 Rogue 180 Adventurer 0 Explorer 0 Win Type - Total 1 Types 1/0/0/0/0/0/0/0/0/0 Lore% 68 Gallery% 59 Achievement% 51 Wizard Run 0 Options --------- Layout 0 ASCII 0 Keyboard 0 Movement Mouse Keybinds 0 Fullscreen 1 Font 16/SmallcapsGlow Map View 75x55 Zoom Use 0% Tactical HUD 1 Map Filters NONE Filters NONE Steam 1 RUN: 12fbd971-1f49-4a69-8f69-b1f1eabae0e0